Cogmind - Beta 14 @@@ ROGUE MODE // 2024.08.11 @ 05:58:31 Player: osman sinnoks Result: Destroyed by as-57889 with Assembled Blade Performance ------------- Evolutions (0) 0 Regions Visited (2) 400 Robots Destroyed (16) 80 Value Destroyed (180) 180 Prototype IDs (0) 0 Alien Tech Used (0) 0 Bonus (0) 0 TOTAL SCORE: 660 Bonus ------- None Cogmind --------- Core Integrity 0/250 Matter 300/300 Energy 100/100 System Corruption 0% Temperature Cool (0) Movement Core (50) Location -10/Mines Parts ------- > --- POWER (1) -------- (None) > --- PROPULSION (2) --- (None) > --- UTILITY (2) ------ (None) > --- WEAPON (2) ------- Light Assault Rifle > --- INVENTORY (5) ---- Light Ion Engine Peak State ------------ > --- POWER ------------ Ion Engine > --- PROPULSION ------- Aluminum Leg Aluminum Leg > --- UTILITY ---------- Seismic Detector Light Armor Plating > --- WEAPON ----------- Light Assault Rifle Grenade Launcher > --- INVENTORY -------- Light Ion Engine Medium Laser [Rating: 7] Favorites ----------- Power Ion Engine Engine Ion Engine Propulsion Aluminum Leg Leg Aluminum Leg Utility Seismic Detector Device Seismic Detector Protection Light Armor Plating Weapon Light Assault Rifle Energy Gun Medium Laser Ballistic Gun Light Assault Rifle Launcher Grenade Launcher Build | -11 -10 -10 ------- Run | Yrd Mat Min Slots Evolved . | . . . Power . | . . . Propulsion . | . . . Utility . | . . . Weapon . | . . . Parts Attached 9 | 5 3 1 Power 1 | 1 . . Engine 1 | 1 . . Core . | . . . Reactor . | . . . Propulsion 2 | 2 . . Treads . | . . . Leg 2 | 2 . . Wheel . | . . . Hover . | . . . Flight . | . . . Utility 2 | . 2 . Device 1 | . 1 . Storage . | . . . Processor . | . . . Hackware . | . . . Protection 1 | . 1 . Artifact . | . . . Weapon 4 | 2 1 1 Energy Gun 2 | 1 . 1 Energy Cannon . | . . . Ballistic Gun 1 | 1 . . Ballistic Cannon . | . . . Launcher 1 | . 1 . Special Weapon . | . . . Impact Weapon . | . . . Slashing Weapon . | . . . Piercing Weapon . | . . . Special Melee Weapon . | . . . Unidentified Prototypes . | . . . Parts Lost 6 | . . 6 Power 1 | . . 1 Propulsion 1 | . . 1 Utility 2 | . . 2 Weapon 2 | . . 2 Highest Loss Streak 3 | . . 3 To Critical Strikes . | . . . Average Slot Usage (%) 85 | . 86 85 Engine 13 | . 14 13 Leg 24 | . 28 24 Device 11 | . 8 13 Protection 7 | . 7 7 Energy Gun 3 | . 4 3 Ballistic Gun 14 | . 14 14 Launcher 8 | . 10 8 Peak Build Rating 7 | 5 7 7 Average Rating 5 | 4 6 5 On Entrance 4 | . 5 7 Naked Turns . | . . . Heaviest Build 13 | 8 13 13 Greatest Support 20 | 20 20 20 Greatest Overweight (x) . | . . . Average Overweight (x) . | . . . Largest Inventory Capacity 5 | 5 5 5 Average Capacity 5 | 5 5 5 Most Carried 3 | 2 3 2 Average Carried 1 | . 1 1 Final Capacity 5 | 5 5 5 Final Carried 2 | 1 2 1 Class Distribution -------------------- 100% | Mutant Dominant Class ---------------- Mutant | -10/Materials Mutant | -10/Mines Resources | -11 -10 -10 ----------- Run | Yrd Mat Min Matter Collected 465 | 265 30 170 Remotely . | . . . Salvage Created 211 | 86 30 95 Parts 22 | 7 . 15 Haulers Intercepted 1 | . 1 . Recyclers Shooed . | . . . Parts Field Recycled . | . . . Retrieved Matter . | . . . Parts Self-Destructed . | . . . Prevented . | . . . Kills | -11 -10 -10 ------- Run | Yrd Mat Min Combat Hostiles Destroyed 11 | . . 11 Guns 6 | . . 6 AOE 5 | . . 5 Classes Destroyed 5 | 1 1 3 Tunneler 5 | 5 . . Hauler 1 | . 1 . Swarmer 9 | . . 9 Demolisher 1 | . . 1 Assembled 1 | . . 1 Best Kill Streak 6 | 2 1 6 Combat Bots Only 6 | . . 6 Max Kills in Single Turn 2 | 1 1 2 Gunslinging . | . . . Exploded 2 | . . 2 Melee . | . . . Uniques/NPCs Destroyed . | . . . Combat | -11 -10 -10 -------- Run | Yrd Mat Min Hostile Shots Fired 51 | . . 51 Missed 15 | . . 15 Damage Taken 782 | . . 782 Core 270 | . . 270 Absorbed by Shields . | . . . Core Remaining (%) 100 | 100 . . Volleys Fired 60 | 15 4 41 Largest 2 | 2 2 2 Hottest 70 | 70 50 70 Shots Fired 98 | 30 7 61 Gun 84 | 30 4 50 Cannon . | . . . Launcher 14 | . 3 11 Special . | . . . Kinetic 60 | 15 4 41 Thermal 24 | 15 . 9 Explosive 14 | . 3 11 Electromagnetic . | . . . Robot Hit Streak 7 | 4 5 7 Robot Miss Streak 6 | 3 1 6 Penetration Max . | . . . Secondary Targets 2 | . . 2 Max Gunslinging Chain 1 | . . 1 Shots Hit Robots 48 | 18 5 25 Core Hits 29 | 6 4 19 Critical Kills . | . . . Critical Parts Destroyed . | . . . Critical Strikes 3 | 2 . 1 Burn 3 | 2 . 1 Melee Attacks . | . . . Impact . | . . . Slashing . | . . . Piercing . | . . . Sneak Attacks . | . . . Combat Hostiles . | . . . Follow-up Attacks . | . . . Damage Inflicted 878 | 200 127 551 Guns 406 | 200 21 185 Cannons . | . . . Explosions 442 | . 106 336 Melee . | . . . Ramming 30 | . . 30 Kinetic 247 | 77 21 149 Thermal 159 | 123 . 36 Explosive 442 | . 106 336 Electromagnetic . | . . . Impact . | . . . Slashing . | . . . Piercing . | . . . Highest Corruption . | . . . Average Corruption . | . . . Corruption Purged . | . . . Corruption Blocked . | . . . Overload Shots . | . . . Overflow Damage 6 | . . 6 Projectiles . | . . . Explosions 6 | . . 6 Melee . | . . . Knockbacks . | . . . Impact . | . . . Kinetic . | . . . Secondary . | . . . Self-Inflicted Damage 32 | . . 32 Shots 1 | . . 1 Rammed 7 | . . 7 Targets Rammed 11 | . . 11 Kicked 4 | . . 4 Crushed . | . . . Highest Temperature 100 | 100 32 70 Average Temperature 26 | 32 18 22 Received Heat Transfer . | . . . Siege Activations . | . . . Robots Corrupted . | . . . Combat Hostiles . | . . . Parts Fried . | . . . Impact Corruptions . | . . . Robots Melted . | . . . Combat Hostiles . | . . . Parts Melted 2 | . . 2 Heat Transferred 703 | 518 . 185 Parts Sabotaged . | . . . Parts Stolen . | . . . Parts Stripped . | . . . Power Chain Reactions . | . . . Alert | -11 -10 -10 ------- Run | Yrd Mat Min Peak Influence 278 | 25 30 278 Initial 16 | . 16 11 Average 119 | 11 18 183 Maximum Alert Level 1 | . . 1 Low Security (%) 81 | 100 100 69 Level 1 18 | . . 30 Level 2 . | . . . Level 3 . | . . . Level 4 . | . . . Level 5 . | . . . High Security . | . . . Max Security . | . . . Squads Dispatched . | . . . Investigation . | . . . Extermination . | . . . Reinforcement . | . . . Assault . | . . . Garrison . | . . . Intercept . | . . . Searches Triggered . | . . . Construction Impeded . | . . . Haulers Reinforced . | . . . Active Scanning Responses . | . . . Cargo Convoy Interrupts . | . . . Stealth | -11 -10 -10 --------- Run | Yrd Mat Min Distress Signals . | . . . Communications Jammed . | . . . Distress Signals . | . . . Times Spotted 12 | . . 12 Peak Tracking Total 3 | . . 3 Tactical Retreats . | . . . Traps | -11 -10 -10 ------- Run | Yrd Mat Min Traps Triggered . | . . . Indirectly . | . . . Trap Hack Attempts . | . . . Triggered . | . . . Disarmed . | . . . Reprogrammed . | . . . Reused . | . . . Traps Extracted . | . . . Installed . | . . . Triggered . | . . . Machines | -11 -10 -10 ---------- Run | Yrd Mat Min Machines Disabled . | . . . Max in Single Turn . | . . . Machines Repaired . | . . . Machines Dismantled . | . . . Machines Sabotaged . | . . . Overloaded Fab Kills . | . . . Hacking | -11 -10 -10 --------- Run | Yrd Mat Min Machines Accessed . | . . . Terminals . | . . . Fabricators . | . . . Repair Stations . | . . . Recycling Units . | . . . Scanalyzers . | . . . Garrison Access . | . . . Total Hacks . | . . . Successful . | . . . Failed . | . . . Catastrophic . | . . . Database Lockouts . | . . . Manual . | . . . Terminals . | . . . Fabricators . | . . . Repair Stations . | . . . Recycling Units . | . . . Scanalyzers . | . . . Garrison Access . | . . . Terminal Hacks . | . . . Fabricator Hacks . | . . . Repair Station Hacks . | . . . Recycling Unit Hacks . | . . . Scanalyzer . | . . . Garrison Access Hacks . | . . . Unauthorized Hacks . | . . . Terminals . | . . . Fabricators . | . . . Repair Stations . | . . . Recycling Units . | . . . Scanalyzers . | . . . Garrison Access . | . . . Data Cores Recovered . | . . . Used . | . . . Hacking Detections . | . . . Full Trace Events . | . . . Feedback Events . | . . . Feedback Blocked . | . . . Robot Schematics Acquired . | . . . Robots Built . | . . . Authchips . | . . . Time . | . . . Total Robot Build Rating . | . . . Part Schematics Acquired . | . . . Parts Built . | . . . Authchips . | . . . Time . | . . . Total Part Build Rating . | . . . Parts Repaired . | . . . Time . | . . . Parts Recycled . | . . . Recycled Matter . | . . . Retrieved Matter . | . . . Retrieved Components . | . . . Parts Scanalyzed . | . . . Part Schematics Acquired . | . . . Parts Damaged . | . . . Bothacking | -11 -10 -10 ------------ Run | Yrd Mat Min Used RIF Installer . | . . . Robots Hacked . | . . . Non-combat . | . . . Combat . | . . . Robot Hacks Applied . | . . . Relay Couplers Released . | . . . Fabnet Peak Effective % . | . . . Robots Rewired . | . . . Allies Hacked . | . . . Hacks Repelled . | . . . Allies | -11 -10 -10 -------- Run | Yrd Mat Min Total Allies . | . . . Largest Group . | . . . Highest-Rated Group . | . . . Highest-Rated Ally . | . . . Total Orders . | . . . Ally Attacks . | . . . Total Damage . | . . . Kills . | . . . Allies Corrupted . | . . . Allies Melted . | . . . Intel | -11 -10 -10 ------- Run | Yrd Mat Min Robot Analysis Total . | . . . Derelict Logs Recovered . | . . . Drone Launches . | . . . Drone Recoveries . | . . . Exploration | -11 -10 -10 ------------- Run | Yrd Mat Min Turns Passed 747 | 143 143 461 Spaces Moved 493 | 77 106 310 Core 30 | 3 . 27 Treads . | . . . Legs 463 | 74 106 283 Wheels . | . . . Hover . | . . . Flight . | . . . Fastest Speed 50 | 50 120 50 Average Speed 115 | 117 120 113 Slowest Speed 120 | 120 120 120 Overloaded Moves . | . . . Propulsion Burnouts . | . . . Robots Hopped . | . . . Cave-ins Triggered . | . . . Exploration Rate (%) 38 | 4 31 79 Regions Visited 2 Branch Regions 1 Pre-discovered Areas . | . . . Known Exits Taken . | . . . Unknown Exits Taken 2 | 1 1 . Scrap Searched . | . . . Spaces Dug . | . . . Terrain Destroyed 76 | . 7 69 Melee . | . . . Projectile . | . . . AOE 76 | . 7 69 Terrain Rammed . | . . . Walls Destroyed . | . . . Machines Disabled . | . . . Actions | -11 -10 -10 --------- Run | Yrd Mat Min Total 581 | 102 115 364 Wait . | . . . Move 491 | 76 105 310 Hop . | . . . Pick Up 9 | 6 3 . Fast Attach . | . . . Attach 8 | 5 2 1 Detach . | . . . Swap 1 | . 1 . Drop 1 | . . 1 Fire 60 | 15 4 41 Melee . | . . . Ram 7 | . . 7 Kick 4 | . . 4 Crush . | . . . Escape Stasis . | . . . Rewire . | . . . Trap . | . . . Miscellaneous . | . . . Route ------- -11/Scrapyard -10/Materials -10/Mines (discovered 2 exits: [*Mat x2]) History --------- Turn | Location | Event 7 | -11/Scrapyard | Discovered new exit (range 15) 144 | -11/Scrapyard | Entered Materials 269 | -10/Materials | Discovered new exit (range 15) 287 | -10/Materials | Entered Mines 312 | -10/Mines | Build established: Mutant 415 | -10/Mines | Discovered new exit (range 9) 461 | -10/Mines | Assembled infested the area 466 | -10/Mines | Assisted by a Guerilla fighting off Assembled 611 | -10/Mines | Core integrity fell below 50% 653 | -10/Mines | Discovered new exit (range 10) 725 | -10/Mines | Core integrity fell below 20% 748 | -10/Mines | Lost 3 parts (1p1u1w) 748 | -10/Mines | Destroyed by as-57889 with Assembled Blade Last Messages --------------- R-06 Scavenger collects Lgt. Assault Rifle. K-01 Serf collects debris. Acquired 76 matter. U-05 Engineer builds a Wall. Kicked U-05 Engineer. Kicked T-07 Excavator. K-01 Serf collects debris. Knocked back. K-01 Serf collects debris. as-07701 destroyed. Switching to secondary target: as-57889. Ion Engine destroyed. Seismic Detector destroyed. Med. Laser destroyed. Acquired 1 matter. Dropped Aluminum Leg. K-01 Serf collects debris. as-57889 sneak attacks. T-07 Excavator destroyed. Slammed into as-57889. Map ----- +----------------------------------------------------+ | #????????????????????????????????????????????????? | | #????????????????????????????????????????????????? | | ##?####??????????????????????????????????????????? | | ### ##???#############?????????????????????????? | | #???# """ """ #?????????????????????????? | | ##???# """ """ < #?????????????????????????? | | ###### """ """ #?????????????????????????? | | #?????????????????????????? | | ## = % #?????????????????????????? | | ########### % #?????????????????????????? | | #####?????# #?????????????????????????? | | # ####### #?????????????????????????? | | # # ##### ########?????????????????????????? | | ### ##??# #?# ????????????????????????????? | | ######### #?# ????????????????????????????? | | % #?# ??????????????????????? ????? | | #### #####?# %??????????????????????? #??? | | ### # #?????# ???????????????????#### ??? | | # ## ## #?????# ???????????????????? ??? | | # #?????# ???????????????????? ??? | | #### #######?????# #??????????????????? ???? | | # #% ## #????????# #??????????????????? %= ???? | | # # ###????????# ##???????####???????? = ???? | | # ##%#??????????# ##?????## ##???##?# * ????? | | ###### ##?????????# ####### ##??# ?? ????? | | # ## #######???# a@%% ##?# ### #????? | | ## ##??##t ######## ### # ##???? | | % |##### #??????# # ##### | | % !%* #??????## ## = # | | ## = !### #???????###### [*[ | | ###### #### #???????????# *[ | | ##????## ## #?## #???????????# # | | #??????###### #??## #??????????## ####### | | ##????#####??### #???## ??????????## ###???? | | #????## ###??# #????? ??????????## ##??# | | ###### ##?# ####??# #??????????## #??# | | ### #???# ##???????????## #??# | | #### #???? #????????????## ##??? | | ## ##### ### #?????#???????????## ##???? | | ?# #???## ## ##### #???????????# #????? | | ?# #????# ############# ##????? | | ?# #????# # ######### ##?????? | | ## #???# ## ##????????######## #########??????? | | ##??# ### #??????#?##??????# #??????????????? | | < ##?## #?# #??????# ???????# #??????????????? | | ##?###?# #??????# #???????# #??????????????? | | """ ####??# ######## #???????# #??????????????? | | """ #??# ##?# #### #??????????????? | | """ ## #??# ? ### #??????????????? | | ### #??####?# ###### #??????????????? | +----------------------------------------------------+ Best States ------------- Heat Dissipation 25 Energy Generation 10 Energy Capacity 250 Matter Stores 300 Matter Capacity 300 Sight Range 16 Terrain Scan Density 10 Armor Coverage 150 Evasion (%) 55 Item Schematics ----------------- None Robot Schematics ------------------ None Fabricated ------------ Nothing Alien Tech Used ----------------- None Achievements -------------- None Challenges ------------ None Game ------ Seed AdvancedSiegeScythe Manual? 0 Play Time 00:08:05 Cumulative 17.0 hours Start 2024.08.11 @ 05:51:15 End 2024.08.11 @ 05:58:31 Sessions 1 Manual Loads 0 Difficulty Rogue Special Mode None Game No. 38 Rogue 38 Adventurer 0 Explorer 0 Win Type - Total 0 Types 0/0/0/0/0/0/0/0/0 Lore% 13 Gallery% 23 Achievement% 19 Wizard Run 0 Options --------- Layout 1 ASCII 0 Keyboard 0 Movement Mouse Keybinds 0 Fullscreen 1 Font 16/SmallcapsGlow Map View 50x40 Zoom Use 0% Tactical HUD 0 Map Filters NONE Filters NONE Steam SD RUN: a99fd9de-0e12-41ac-89ba-b5ec420f3d13